{"text_format":"1","workbook":"xlsx","n_sheets":3,"sheets":["RFQ","PO","Images"],"not_rendered":{"charts":0,"images":13,"macros":1,"external_links":0,"defined_names":42,"comments":0,"pivot_tables":0},"unopened":[],"bounds":{"document_bytes":16777216,"sheet_cells":100000,"rows_first":2000,"rows_last":500,"rows_between":2000,"halvings":0,"cell_chars":16384,"cell_head_chars":4096},"cells_cut":0,"cells_raw":0,"read":"whole","date_system":"1900"}

{"sheet":"RFQ","index":0,"n_rows":49,"n_cols":19,"rows_kept":49,"cut":false,"hidden":false,"merged":[[48,0,48,7],[47,0,47,7],[39,0,39,2],[44,1,45,3],[18,0,18,2],[21,1,21,3],[22,1,22,3],[43,0,43,3],[46,1,46,3],[22,5,22,6],[27,3,27,4],[28,3,28,4],[20,5,20,7],[21,5,21,7],[16,5,16,6],[18,5,18,6],[16,0,16,2],[3,5,3,6],[46,5,46,6],[44,5,44,6],[30,3,30,4],[31,3,31,4],[32,3,32,4],[33,3,33,4],[34,3,34,4],[15,3,15,4],[16,3,16,4],[20,1,20,3],[15,0,15,2],[18,3,18,4],[0,5,0,7],[1,5,1,6],[2,5,2,6],[43,5,43,6],[15,5,15,6],[4,5,7,7],[8,0,8,7],[10,5,12,6],[10,7,12,7],[2,1,2,3],[3,1,3,3],[39,3,39,4],[10,3,10,4],[11,3,11,4],[12,3,12,4],[29,3,29,4],[0,1,0,4],[35,3,35,4],[36,3,36,4],[37,3,37,4],[38,3,38,4],[5,1,5,2],[6,1,6,2],[7,0,7,3],[4,0,4,3],[24,3,24,4],[25,3,25,4],[26,3,26,4]]}
[null,"MTC Engineering",null,null,null,"REQUEST FOR QUOTE",null,null,null,null,"Release 20"]
[null,null,null,null,{"$f":"VLOOKUP(Company, Images, 2, FALSE)","v":"Picture1"},"Job Code",null,"Sequence"]
[null,{"$f":"VLOOKUP(Company,CompanyTable,2,FALSE)","v":"747 Carle Ave."},null,null,null,null,null,null,null,null,null,"Company","Address","State","Phone","Fax","Email","Web","Cage"]
[null,{"$f":"VLOOKUP(Company,CompanyTable,3,FALSE)","v":"Lewis Center, OH 43035"},null,null,null,"Please respond by:",null,{"$f":"IF(RequestDate>0.1,RequestDate +5,\" \")","v":" "},null,null,"Rated Contracts","MTC Engineering","747 Carle Ave.","Lewis Center, OH 43035","614-657-8666","614-540-7442","mtcengineering@att.net","www.mtcengco.com","3BTS1"]
[{"$f":"VLOOKUP(RequestBy,COBuyers,2,FALSE)","v":"lewiscentermfg@gmail.com"},null,null,null,null,"PLEASE Include RFQ Number on all correspondence and quote on this sheet for each item. Note delivery, terms and conditions.",null,null,null,null,"--Select Rating--","Industrial Welding & Engineering","747 Carle Ave.","Lewis Center, OH 43035","614-883-6109","614-737-9320","iwe@columbus.rr.com","www.iweohio.com","3NBK9"]
["Phone:",{"$f":"VLOOKUP(Company,CompanyTable,4,FALSE)","v":"614-657-8666"},null,{"$f":"VLOOKUP(RequestBy,COBuyers,3,FALSE)","v":"614-560-6122"},null,null,null,null,null,null,"--Select Agency--","MTC Engineering, LLC","747 Carle Ave.","Lewis Center, OH 43035","614-657-8666","614-540-7442","mtcengllc@att.net","www.mtcengco.com","5TVD6"]
["FAX:",{"$f":"VLOOKUP(Company,CompanyTable,5,FALSE)","v":"614-540-7442"},null,{"$f":"VLOOKUP(RequestBy,COBuyers,4,FALSE)","v":"614-737-9320"},null,null,null,null,null,null,null,"Alannas Engineer","9710-A Owensmouth Ave.","Chatsworth, CA 91311","818-701-1522","818-701-0316","alannasengineer@yahoo.com","-","5KBD7"]
[{"$f":"VLOOKUP(Company,CompanyTable,7,FALSE)","v":"www.mtcengco.com"},null,null,null,null,null,null,null,null,null,null,"LCG Machine & Tool","2923 Grasemere Ave.","Columbus, OH 43224","614-261-1651","614-447-8051","sales@lcgmachine.com","www.lcgmachine.com","4HYL7"]
["\"A Defense Contractor for Machined and Fabricated Spare Parts and Assemblies.\"",null,null,null,null,null,null,null,null,null,null,"Boehm Machine","1297 Memory Lane, N.","Columbus, OH 43209","614-252-3778","614-237-5262","gkboehm@wideopenwest.com","-","1P723"]
["Vendor:",null,null,null,null,null,null,null,null,null,null,"Fourply Design House","747 Carle Ave.","Lewis Center, OH 43035","910-381-3110","614-737-9320","nic@iweohio.com","www.fourplydesign.com","6Q2Z8"]
[null,"Company Name:",null,null,null,"CERTIFICATES OF CONFORMANCE REQUIRED",null,"YES",null,null,null,"Lewis Center Mfg.","747 Carle Ave.","Lewis Center, OH 43035","614-560-6122","614-737-9320","lewiscentermfg@gmail.com",null,"6QCA7"]
[null,"Contact:",null,null,null,null,null,null,null,null,null,"RC Industries, Inc.","7755 Alabama Ave., Ste 6/8","Canoga Park, CA 91304","818-883-0855","818-883-2537","rcind@sbcglobal.net",null,"6CH54"]
[null,"FAX:",null,null,null,null,null,null,null,null,null,"Westerville Mfg","771-P Dearborn Park Ln","Worthington, OH 43085","614-888-9088","614-888-9188","wmfginc@sbcglobal.net","www.wmfginc.com","7Y162"]
[]
["VENDOR INSTRUCTIONS",null,null,null,null,null,null,null,null,null,null,"Name","eMail","Phone","Fax"]
["REQUESTED BY:",null,null,"Louis Spiezio",null,"PAYMENT TERMS",null,"TBD",null,null,null,"Tony Casillas - Sr. Engineer","mtcengineering@att.net"," Direct: 614-657-8666","Fax Direct: 614-540-7442"]
["DATE:",null,null,null,null,"SHIPPED VIA",null,"* Call",null,null,null,"Tony Casillas - IWE Government Sales","tony@iweohio.com"," Direct: 614-657-8666","Fax Direct: 614-540-7442"]
[null,null,null,null,null,null,null,null,null,null,null,"Tony Casillas - Government Sales","field.engineering@att.net"," Direct: 614-657-8666","Fax Direct: 614-540-7442"]
["CONTRACT REF:",null,null,"Government",null,"PRODUCT EDD:",null,null,null,null,null,"Brian Hoheisel","brian@iweohio.com","-","-"]
["BILL TO:",null,null,null,"SHIP TO:",null,null,null,null,null,null,"Lou Spiezio","lou@iweohio.com","614-560-6122","614-737-9320"]
[null,{"$f":"Company","v":"MTC Engineering"},null,null,null,{"$f":"Company","v":"MTC Engineering"},null,null,null,null,null,"Dietmar Hoheisel","wmfginc@sbcglobal.net","-","-"]
[null,{"$f":"Company_Street","v":"747 Carle Ave."},null,null,null,{"$f":"Company_Street","v":"747 Carle Ave."},null,null,null,null,null,"Severino Perez","alannasengineer@yahoo.com","Cell: 818-207-8658","-"]
[null,{"$f":"Company_State","v":"Lewis Center, OH 43035"},null,null,null,{"$f":"Company_State","v":"Lewis Center, OH 43035"},null,null,null,null,null,"Lowell Garett","sales@lcgmachine.com","-","-"]
[null,null,null,null,null,null,null,null,null,null,null,"Fourply Design House","nic@iweohio.com","614-560-6122","614-737-9320"]
["ITEM #","QTY.","U/M","DESCRIPTION",null,"JOB#","UNIT PRICE","TOTAL",null,null,null,"Louis Spiezio","lewiscentermfg@gmail.com","614-560-6122","614-737-9320"]
[null,null,null,null,null,null,null,{"$f":"IF(G26>0.01,B26*G26,\" \")","v":" "},null,null,null,"Robert Chicaskz","rcind@sbcglobal.net","-","-"]
[{"$f":"IF(B27>0.1,1,\" \")","v":" "},null,"EA",null,null,null,null,{"$f":"IF(G27>0.01,B27*G27,\" \")","v":" "},null,null,null,"George Boehm","gkboehm@wideopenwest.com","-","-"]
[{"$f":"IF(B28>0.1,MAX(A26:A27)+1,\" \")","v":" "},null,null,null,null,null,null," "]
[{"$f":"IF(B29>0.1,MAX(A26:A28)+1,\" \")","v":" "},null,null,null,null,null,null," ",null,null,null,null,null,"COMPANY-Name","PHOTO"]
[{"$f":"IF(B30>0.1,MAX(A26:A29)+1,\" \")","v":" "},null,null,null,null,null,null," ",null,null,null,null,null,"MTC Engineering","Picture1"]
[{"$f":"IF(B31>0.1,MAX(A26:A30)+1,\" \")","v":" "},null,null,null,null,null,null," ",null,null,null,null,null,"MTC Engineering, LLC","Picture1"]
[{"$f":"IF(B32>0.1,MAX(A26:A31)+1,\" \")","v":" "},null,null,null,null,null,null," ",null,null,null,null,null,"Industrial Welding & Engineering","Picture2"]
[{"$f":"IF(B33>0.1,MAX(A26:A32)+1,\" \")","v":" "},null,null,null,null,null,null," ",null,null,null,null,null,"LCG Machine & Tool","Picture3"]
[{"$f":"IF(B34>0.1,MAX(A26:A33)+1,\" \")","v":" "},null,null,null,null,null,null," ",null,null,null,null,null,"Alannas Engineer","Picture4"]
[{"$f":"IF(B35>0.1,MAX(A26:A34)+1,\" \")","v":" "},null,null,null,null,null,null," ",null,null,null,null,null,"Boehm Machine","Picture7"]
[{"$f":"IF(B36>0.1,MAX(A26:A35)+1,\" \")","v":" "},null,null,null,null,null,null," ",null,null,null,null,null,"Lewis Center Mfg.","Picture 4"]
[{"$f":"IF(B37>0.1,MAX(A26:A36)+1,\" \")","v":" "},null,null,null,null,null,null," ",null,null,null,null,null,"Fourply Design House","Picture 6"]
[{"$f":"IF(B38>0.1,MAX(A26:A37)+1,\" \")","v":" "},null,null,null,null,null,null," ",null,null,null,null,null,"RC Industries, Inc.","Picture 3"]
[{"$f":"IF(B38>0.1,MAX(A26:A38)+1,\" \")","v":" "},null,null,null,null,null,null," ",null,null,null,null,null,"Westerville Mfg","Picture5"]
["NOTE:"]
[]
[]
[]
["THIS RFQ IS VALID FOR (DAYS):",null,null,null,null,"SUB TOTAL:",null,{"$f":"IF(SUM(H26:H40)>1,SUM(H26:H40),\" \")","v":" "}]
[null,"30        60        90        120 (DAYS)",null,null,null,"SHIPPING/HANDLING:"]
[null,null,null,null,null,null,"Deposit/Credit:"]
["Sign/Date:",null,null,null,null,"TOTAL:",null,{"$f":"IF(SUM(H44:H45)>1,SUM(H44:H45)-H46,\" \")","v":" "}]
[{"$f":"IF(RatingID=\"DX\",\"THIS IS A \"&RatingID &\" RATED ORDER FOR NATIONAL DEFENSE USE. YOU ARE REQUIRED TO FOLLOW ALL PROVISIONS OF THE DEFENSE PRIORITIES REGULATION 15 CFR 700. AN AUTHORIZED SIGNATURE OF ACCEPTANCE OF 15 CFR 700 TERMS IS REQUIRED.\",IF(RatingID=\"DO\",\"THIS IS A \"&RatingID &\" RATED ORDER FOR NATIONAL DEFENSE USE. YOU ARE REQUIRED TO FOLLOW ALL PROVISIONS OF THE DEFENSE PRIORITIES REGULATION 15 CFR 700. AN AUTHORIZED SIGNATURE OF ACCEPTANCE OF 15 CFR 700 TERMS IS REQUIRED.\",\"PLEASE SIGN AND RETURN PO ACKNOWLEDGEMENT. \"))","v":"PLEASE SIGN AND RETURN PO ACKNOWLEDGEMENT. "}]
[{"$f":"IF(Contract=\"Government\",\"IF THIS IS AN ORDER FOR MILITARY WEAPONS SYSTEM, ITAR 22 CFR 120-130, NONDISCLOSURE REQUIREMENTS ARE IMPOSSED.\",IF(Contract>\"SPE\",\"IF THIS IS AN ORDER FOR MILITARY WEAPONS SYSTEM, ITAR 22 CFR 120-130, NONDISCLOSURE REQUIREMENTS ARE IMPOSSED\",\"\"))","v":"IF THIS IS AN ORDER FOR MILITARY WEAPONS SYSTEM, ITAR 22 CFR 120-130, NONDISCLOSURE REQUIREMENTS ARE IMPOSSED."}]

{"sheet":"PO","index":1,"n_rows":49,"n_cols":8,"rows_kept":49,"cut":false,"hidden":false,"merged":[[48,0,48,7],[10,3,10,4],[11,3,11,4],[12,3,12,4],[10,5,12,6],[10,7,12,7],[47,0,47,7],[21,1,21,3],[22,1,22,3],[20,5,20,7],[21,5,21,7],[22,5,22,6],[20,1,20,3],[39,0,39,5],[40,3,40,5],[42,3,42,5],[18,3,18,4],[43,0,43,1],[27,3,27,4],[28,3,28,4],[29,3,29,4],[30,3,30,4],[31,3,31,4],[15,5,15,6],[41,2,41,5],[41,0,41,1],[18,5,18,6],[18,0,18,2],[15,0,15,2],[16,5,16,6],[16,0,16,2],[35,3,35,4],[24,3,24,4],[25,3,25,4],[26,3,26,4],[33,3,33,4],[32,3,32,4],[15,3,15,4],[16,3,16,4],[8,0,8,7],[1,7,2,7],[5,0,5,3],[0,1,0,4],[9,3,9,4],[2,1,2,3],[3,1,4,3],[3,5,7,7],[0,5,0,7],[1,5,2,6],[46,3,46,5],[45,3,45,4],[46,0,46,1],[45,5,45,6],[34,3,34,4],[36,3,36,4],[37,3,37,4],[38,3,38,4],[44,0,44,4],[44,5,44,6],[43,5,43,6]]}
[null,{"$f":"Company","v":"MTC Engineering"},null,null,null,"PURCHASE ORDER"]
[null,null,null,null,{"$f":"VLOOKUP(Company, Images, 2, FALSE)","v":"Picture1"},{"$f":"IF(Job_Code>1,Job_Code,\" \")","v":" "},null,{"$f":"IF(PO_Seq>1,PO_Seq,\" \")","v":" "}]
[null,{"$f":"Company_Street","v":"747 Carle Ave."}]
[null,{"$f":"Company_State","v":"Lewis Center, OH 43035"},null,null,null,"PLEASE Include P.O. Number on all invoices and correspondence. Please notify us immediately if this order can not be filled on time."]
[]
[{"$f":"Email","v":"lewiscentermfg@gmail.com"}]
["Phone:",{"$f":"Phone","v":"614-657-8666"},null,{"$f":"Company_Phone","v":"614-560-6122"}]
["FAX:",{"$f":"Fax","v":"614-540-7442"},null,{"$f":"Company_Fax","v":"614-737-9320"}]
["\"A Defense Contractor for Machined and Fabricated Spare Parts and Assemblies.\""]
["VENDOR:",null,null,{"$f":"WebSite","v":"www.mtcengco.com"}]
[null,"Company Name:",null,{"$f":"IF(VendorName>0.1,VendorName,\" \")","v":" "},null,"CERTIFICATES OF CONFORMANCE REQUIRED",null,{"$f":"IF(Certs>0.1,Certs,\" \")","v":"YES"}]
[null,"Contact:",null,{"$f":"IF(VendorContact>0.1,VendorContact,\" \")","v":" "}]
[null,"FAX:",null,{"$f":"IF(VendorFax>0.1,VendorFax,\" \")","v":" "}]
[]
["VENDOR INSTRUCTIONS"]
["ORDERD BY:",null,null,{"$f":"IF(RequestBy>0.1,RequestBy,\" \")","v":"Louis Spiezio"},null,"PAYMENT TERMS",null,{"$f":"IF(Terms>1,Terms,\" \")","v":"TBD"}]
["DATE OF ORDER:",null,null,{"$f":"IF(RequestDate>0.1,RequestDate,\" \")","v":" "},null,"SHIPPED VIA",null,{"$f":"ShippedVia","v":"* Call"}]
[]
["CONTRACT REF:",null,null,{"$f":"IF(Contract>1,Contract,\" \")","v":"Government"},null,"DELIVERY DATE:",null,{"$f":"IF(RequiredDate>1,RequiredDate,\" \")","v":" "}]
["BILL TO:",null,null,"SHIP TO:"]
[null,{"$f":"Company","v":"MTC Engineering"},null,null,null,{"$f":"Company","v":"MTC Engineering"}]
[null,{"$f":"Company_Street","v":"747 Carle Ave."},null,null,null,{"$f":"Company_Street","v":"747 Carle Ave."}]
[null,{"$f":"Company_State","v":"Lewis Center, OH 43035"},null,null,null,{"$f":"Company_State","v":"Lewis Center, OH 43035"}]
[]
["ITEM #","QTY.","U/M","DESCRIPTION",null,"JOB #","UNIT PRICE","TOTAL"]
[{"$f":"IF(Item>0.1,Item,\" \")","v":" "},{"$f":"IF(Qty>0.1,Qty,\" \")","v":" "},{"$f":"IF(UM>1,UM,\" \")","v":" "},{"$f":"IF(Description>1,Description,\" \")","v":" "},null,{"$f":"IF(Job>0.1,Job,\" \")","v":" "},{"$f":"IF(UnitCost>0.001,UnitCost,\" \")","v":" "},{"$f":"IF(UnitCost>0.001,UnitCost*Qty,\" \")","v":" "}]
[" "," ","EA"," ",null," "," "," "]
[" "," "," "," ",{"$f":"IF(RFQ!E28>0.1,RFQ!E28,\" \")","v":" "}," "," "," "]
[" "," "," "," ",{"$f":"IF(RFQ!E29>0.1,RFQ!E29,\" \")","v":" "}," "," "," "]
[" "," "," "," ",{"$f":"IF(RFQ!E30>0.1,RFQ!E30,\" \")","v":" "}," "," "," "]
[" "," "," "," ",{"$f":"IF(RFQ!E31>0.1,RFQ!E31,\" \")","v":" "}," "," "," "]
[" "," "," "," ",{"$f":"IF(RFQ!E32>0.1,RFQ!E32,\" \")","v":" "}," "," "," "]
[" "," "," "," ",{"$f":"IF(RFQ!E33>0.1,RFQ!E33,\" \")","v":" "}," "," "," "]
[" "," "," "," ",{"$f":"IF(RFQ!E34>0.1,RFQ!E34,\" \")","v":" "}," "," "," "]
[" "," "," "," ",{"$f":"IF(RFQ!E35>0.1,RFQ!E35,\" \")","v":" "}," "," "," "]
[" "," "," "," ",{"$f":"IF(RFQ!E36>0.1,RFQ!E36,\" \")","v":" "}," "," "," "]
[" "," "," "," ",{"$f":"IF(RFQ!E37>0.1,RFQ!E37,\" \")","v":" "}," "," "," "]
[" "," "," "," ",{"$f":"IF(RFQ!E38>0.1,RFQ!E38,\" \")","v":" "}," "," "," "]
[" "," "," "," ",{"$f":"IF(RFQ!E39>0.1,RFQ!E39,\" \")","v":" "}," "," "," "]
["PLEASE ACKNOWLEDGE ORDER VIA EMAIL OR RETURN FAX."]
[]
["Sign/Date:"]
[]
[null,null,null,null,null,"SUB TOTAL:",null,{"$f":"IF(SUM(H26:H42)>1,SUM(H26:H42),\" \")","v":" "}]
["This purchase order has been issued by:",null,null,null,null,"SHIPPING/HANDLING:",null,{"$f":"IF(Shipping>0.1,Shipping,\" \")","v":" "}]
[null,null,null,null,null,"CREDIT:"]
["Agent Signature:",null,null,null,null,null,"AMOUNT DUE:",{"$f":"IF(SUM(H44:H45)>1,SUM(H44:H45)-H46,\" \")","v":" "}]
[{"$f":"RatingNotice","v":"PLEASE SIGN AND RETURN PO ACKNOWLEDGEMENT. "}]
[{"$f":"IF(Contract=\"Government\",\"IF THIS IS AN ORDER FOR MILITARY WEAPONS SYSTEM, ITAR 22 CFR 120-130, NONDISCLOSURE REQUIREMENTS ARE IMPOSSED.\",IF(Contract>\"SPM\",\"IF THIS IS AN ORDER FOR MILITARY WEAPONS SYSTEM, ITAR 22 CFR 120-130, NONDISCLOSURE REQUIREMENTS ARE IMPOSSED\",\"\"))","v":"IF THIS IS AN ORDER FOR MILITARY WEAPONS SYSTEM, ITAR 22 CFR 120-130, NONDISCLOSURE REQUIREMENTS ARE IMPOSSED."}]

{"sheet":"Images","index":2,"n_rows":47,"n_cols":14,"rows_kept":47,"cut":false,"hidden":true,"merged":[[2,12,2,13]]}
[]
[]
[null,null,null,null,null,null,null,null,null,null,null,null,"52.211-15 & 52.211-9002"]
[]
[null,null,null,null,null,null,null,null,null,null,null,null,"Contract Rating","Agency Code"]
[null,null,null,null,null,null,null,null,null,null,null,null,"--Select Rating--","--Select Agency--"]
[null,null,null,null,null,null,null,null,null,null,null,null,"DX","A1"]
[null,null,null,null,null,null,null,null,null,null,null,null,"DO","A2"]
[null,null,null,null,null,null,null,null,null,null,null,null,null,"A3"]
[null,null,null,null,null,null,null,null,null,null,null,null,null,"A4"]
[null,null,null,null,null,null,null,null,null,null,null,null,null,"A5"]
[null,null,null,null,null,null,null,null,null,null,null,null,null,"A6"]
[null,null,null,null,null,null,null,null,null,null,null,null,null,"A7"]
[null,null,null,null,null,null,null,null,null,null,null,null,null,"B1"]
[null,null,null,null,null,null,null,null,null,null,null,null,null,"B8"]
[null,null,null,null,null,null,null,null,null,null,null,null,null,"B9"]
[null,null,null,null,null,null,null,null,null,null,null,null,null,"C1"]
[null,null,null,null,null,null,null,null,null,null,null,null,null,"C2"]
[null,null,null,null,null,null,null,null,null,null,null,null,null,"C3"]
[null,null,null,null,null,null,null,null,null,null,null,null,null,"C9"]
[null,null,null,null,null,null,null,null,null,null,null,null,null,"D1"]
[null,null,null,null,null,null,null,null,null,null,null,null,null,"D2"]
[null,null,null,null,null,null,null,null,null,null,null,null,null,"D3"]
[null,null,null,null,null,null,null,null,null,null,null,null,null,"G1"]
[null,null,null,null,null,null,null,null,null,null,null,null,null,"G2"]
[null,null,null,null,null,null,null,null,null,null,null,null,null,"G3"]
[null,null,null,null,null,null,null,null,null,null,null,null,null,"J1"]
[null,null,null,null,null,null,null,null,null,null,null,null,null,"E1"]
[null,null,null,null,null,null,null,null,null,null,null,null,null,"E2"]
[null,null,null,null,null,null,null,null,null,null,null,null,null,"E3"]
[null,null,null,null,null,null,null,null,null,null,null,null,null,"F1"]
[null,null,null,null,null,null,null,null,null,null,null,null,null,"F2"]
[null,null,null,null,null,null,null,null,null,null,null,null,null,"F3"]
[null,null,null,null,null,null,null,null,null,null,null,null,null,"H1"]
[null,null,null,null,null,null,null,null,null,null,null,null,null,"H5"]
[null,null,null,null,null,null,null,null,null,null,null,null,null,"H6"]
[null,null,null,null,null,null,null,null,null,null,null,null,null,"H7"]
[null,null,null,null,null,null,null,null,null,null,null,null,null,"H8"]
[null,null,null,null,null,null,null,null,null,null,null,null,null,"K1"]
[null,null,null,null,null,null,null,null,null,null,null,null,null,"N1"]
[null,null,null,null,null,null,null,null,null,null,null,null,null,"N2"]
[null,null,null,null,null,null,null,null,null,null,null,null,null,"N3"]
[null,null,null,null,null,null,null,null,null,null,null,null,null,"N4"]
[null,null,null,null,null,null,null,null,null,null,null,null,null,"N5"]
[null,null,null,null,null,null,null,null,null,null,null,null,null,"N6"]
[null,null,null,null,null,null,null,null,null,null,null,null,null,"N7"]
[null,null,null,null,null,null,null,null,null,null,null,null,null,"N8"]